[Event "*** SCC Grand Prix: Titled Tuesday Blitz"]
[Site "Chess.com"]
[Date "2020.06.02"]
[Round "7"]
[White "novendrapriasmoro"]
[Black "mishikomchedlishvili"]
[Result "1-0"]
[WhiteElo "2621"]
[BlackElo "2762"]
[TimeControl "180+1"]
[EndTime "11:20:22 PDT"]
[Termination "novendrapriasmoro won on time"]

1. e4 {[%clk 0:03:00.9]} 1... c5 {[%clk 0:02:59.2]} 2. Nf3 {[%clk 0:03:00.5]}
2... e6 {[%clk 0:02:59.2]} 3. d4 {[%clk 0:03:00.4]} 3... cxd4 {[%clk 0:02:59.2]}
4. Nxd4 {[%clk 0:03:01.3]} 4... Nf6 {[%clk 0:02:59.1]} 5. Nc3 {[%clk 0:03:00.8]}
5... d6 {[%clk 0:02:59.1]} 6. Bd3 {[%clk 0:02:59.7]} 6... Nc6 {[%clk 0:02:53.4]}
7. Nb3 {[%clk 0:02:59.2]} 7... Be7 {[%clk 0:02:50.7]} 8. O-O {[%clk 0:03:00.1]}
8... a6 {[%clk 0:02:50.5]} 9. Qe2 {[%clk 0:03:00.4]} 9... b5 {[%clk 0:02:49.5]}
10. Bd2 {[%clk 0:03:00]} 10... Ne5 {[%clk 0:02:42.6]} 11. f4 {[%clk 0:02:58.3]}
11... Nxd3 {[%clk 0:02:42.5]} 12. cxd3 {[%clk 0:02:58.4]} 12... O-O {[%clk
0:02:40.9]} 13. Kh1 {[%clk 0:02:58.2]} 13... b4 {[%clk 0:02:39.7]} 14. Nd1
{[%clk 0:02:56.7]} 14... a5 {[%clk 0:02:39.9]} 15. Ne3 {[%clk 0:02:47.2]} 15...
Ba6 {[%clk 0:02:38.5]} 16. Nc4 {[%clk 0:02:22.1]} 16... d5 {[%clk 0:02:32.9]}
17. exd5 {[%clk 0:02:19.2]} 17... a4 {[%clk 0:02:00]} 18. Nd4 {[%clk 0:01:42.9]}
18... Nxd5 {[%clk 0:01:59.7]} 19. Nc6 {[%clk 0:01:37.3]} 19... Qc7 {[%clk
0:01:59.5]} 20. Nxe7+ {[%clk 0:01:33.7]} 20... Qxe7 {[%clk 0:01:59.4]} 21. f5
{[%clk 0:01:34.1]} 21... Rfe8 {[%clk 0:01:45.1]} 22. Rae1 {[%clk 0:01:22.3]}
22... Qd7 {[%clk 0:01:08.9]} 23. Ne5 {[%clk 0:01:20.3]} 23... Qc7 {[%clk
0:00:52.5]} 24. f6 {[%clk 0:01:06.4]} 24... gxf6 {[%clk 0:00:52.6]} 25. Bh6
{[%clk 0:00:41.3]} 25... Kh8 {[%clk 0:00:51.4]} 26. Qh5 {[%clk 0:00:36.2]} 26...
Ra7 {[%clk 0:00:41.4]} 27. Rxf6 {[%clk 0:00:20.3]} 27... Nxf6 {[%clk 0:00:41.5]}
28. Qg5 {[%clk 0:00:20]} 28... Nh5 {[%clk 0:00:41.6]} 29. Qxh5 {[%clk
0:00:13.9]} 29... Rg8 {[%clk 0:00:35.3]} 30. Rc1 {[%clk 0:00:08.1]} 30... Qb7
{[%clk 0:00:22.8]} 31. Nc6 {[%clk 0:00:08.1]} 31... Raa8 {[%clk 0:00:11.5]} 32.
Qe5+ {[%clk 0:00:07.9]} 1-0

[Event "*** SCC Grand Prix: Titled Tuesday Blitz"]
[Site "Chess.com"]
[Date "2020.06.02"]
[Round "7"]
[White "Evgeny81"]
[Black "deribas12345"]
[Result "1-0"]
[WhiteElo "2720"]
[BlackElo "2558"]
[TimeControl "180+1"]
[EndTime "11:20:22 PDT"]
[Termination "Evgeny81 won on time"]

1. d4 {[%clk 0:03:00.9]} 1... Nf6 {[%clk 0:02:55.8]} 2. Nf3 {[%clk 0:03:00.7]}
2... d6 {[%clk 0:02:55.2]} 3. Nc3 {[%clk 0:02:58.7]} 3... Bf5 {[%clk 0:02:50.6]}
4. g3 {[%clk 0:02:55.1]} 4... Ne4 {[%clk 0:02:44.6]} 5. Bg2 {[%clk 0:02:53.3]}
5... Nxc3 {[%clk 0:02:44.4]} 6. bxc3 {[%clk 0:02:53.1]} 6... Be4 {[%clk
0:02:44.8]} 7. O-O {[%clk 0:02:52.2]} 7... Nd7 {[%clk 0:02:43.7]} 8. Ne1 {[%clk
0:02:43.3]} 8... Bxg2 {[%clk 0:02:43]} 9. Nxg2 {[%clk 0:02:44]} 9... g6 {[%clk
0:02:43]} 10. e4 {[%clk 0:02:43.4]} 10... Bg7 {[%clk 0:02:43.1]} 11. f4 {[%clk
0:02:37.3]} 11... O-O {[%clk 0:02:42.2]} 12. f5 {[%clk 0:02:37.5]} 12... c5
{[%clk 0:02:42]} 13. Bg5 {[%clk 0:02:30.3]} 13... h6 {[%clk 0:02:26.9]} 14. Be3
{[%clk 0:02:26.4]} 14... Qa5 {[%clk 0:02:10.6]} 15. Qd3 {[%clk 0:02:10.4]} 15...
cxd4 {[%clk 0:01:53.8]} 16. cxd4 {[%clk 0:02:10.2]} 16... g5 {[%clk 0:01:41.6]}
17. h4 {[%clk 0:02:03.1]} 17... gxh4 {[%clk 0:01:21.6]} 18. Nxh4 {[%clk
0:01:53.8]} 18... Rac8 {[%clk 0:01:21.2]} 19. f6 {[%clk 0:01:51.9]} 19... Nxf6
{[%clk 0:01:20.7]} 20. Nf5 {[%clk 0:01:50.7]} 20... Rc3 {[%clk 0:01:19.9]} 21.
Qe2 {[%clk 0:01:45.9]} 21... Qa6 {[%clk 0:00:52.9]} 22. Qf3 {[%clk 0:01:25]}
22... Re8 {[%clk 0:00:35.5]} 23. Nxg7 {[%clk 0:01:19.6]} 23... Kxg7 {[%clk
0:00:33.5]} 24. Bxh6+ {[%clk 0:01:19.5]} 24... Kxh6 {[%clk 0:00:33.4]} 25. Qxc3
{[%clk 0:01:19.7]} 25... Rg8 {[%clk 0:00:29]} 26. Rf4 {[%clk 0:01:06.4]} 26...
Kg7 {[%clk 0:00:27.6]} 27. Raf1 {[%clk 0:01:00.2]} 27... Qe2 {[%clk 0:00:25.4]}
28. Qd3 {[%clk 0:00:44.2]} 28... Qh5 {[%clk 0:00:18.4]} 29. e5 {[%clk 0:00:33]}
29... dxe5 {[%clk 0:00:15.7]} 30. Rf5 {[%clk 0:00:28.8]} 30... Qg4 {[%clk
0:00:09.5]} 31. dxe5 {[%clk 0:00:27.2]} 31... Kh6 {[%clk 0:00:04.1]} 32. exf6
{[%clk 0:00:20.4]} 32... Qh3 {[%clk 0:00:04.3]} 33. R5f3 {[%clk 0:00:12.8]}
33... Rg5 {[%clk 0:00:01.9]} 34. Qd2 {[%clk 0:00:10.5]} 1-0

[Event "*** SCC Grand Prix: Titled Tuesday Blitz"]
[Site "Chess.com"]
[Date "2020.06.02"]
[Round "7"]
[White "Stewie_89"]
[Black "Vesper2018"]
[Result "0-1"]
[WhiteElo "2615"]
[BlackElo "2385"]
[TimeControl "180+1"]
[EndTime "11:20:22 PDT"]
[Termination "Vesper2018 won on time"]

1. e4 {[%clk 0:00:49.7]} 1... c5 {[%clk 0:02:57.2]} 2. Nf3 {[%clk 0:00:49.1]}
2... d6 {[%clk 0:02:57.5]} 3. Bb5+ {[%clk 0:00:48.9]} 3... Nd7 {[%clk 0:02:54]}
4. O-O {[%clk 0:00:47.7]} 4... a6 {[%clk 0:02:46.8]} 5. Bxd7+ {[%clk 0:00:46.8]}
5... Bxd7 {[%clk 0:02:47.1]} 6. d4 {[%clk 0:00:47.4]} 6... cxd4 {[%clk
0:02:46.4]} 7. Nxd4 {[%clk 0:00:48.3]} 7... Nf6 {[%clk 0:02:46.2]} 8. Re1 {[%clk
0:00:48.6]} 8... g6 {[%clk 0:02:43.5]} 9. Nc3 {[%clk 0:00:48.5]} 9... Bg7 {[%clk
0:02:43.6]} 10. Bg5 {[%clk 0:00:49.1]} 10... O-O {[%clk 0:02:43.5]} 11. Qd2
{[%clk 0:00:49.2]} 11... Rc8 {[%clk 0:02:36.3]} 12. Rad1 {[%clk 0:00:48.6]}
12... Re8 {[%clk 0:02:27.8]} 13. Nb3 {[%clk 0:00:40.8]} 13... Bc6 {[%clk
0:02:23.8]} 14. Nd4 {[%clk 0:00:35.4]} 14... Qc7 {[%clk 0:02:14.1]} 15. Nxc6
{[%clk 0:00:24.6]} 15... bxc6 {[%clk 0:02:00.1]} 16. Qe2 {[%clk 0:00:22]} 16...
Qb6 {[%clk 0:01:49.6]} 17. b3 {[%clk 0:00:21.1]} 17... Nd7 {[%clk 0:01:44.6]}
18. Na4 {[%clk 0:00:19.8]} 18... Qb7 {[%clk 0:01:44.2]} 19. c4 {[%clk
0:00:19.7]} 19... c5 {[%clk 0:01:38.7]} 20. Qe3 {[%clk 0:00:17.7]} 20... Ne5
{[%clk 0:01:36.6]} 21. h3 {[%clk 0:00:16.8]} 21... Nc6 {[%clk 0:01:36]} 22. Nc3
{[%clk 0:00:14.9]} 22... Nd4 {[%clk 0:01:35.6]} 23. Rd2 {[%clk 0:00:13.5]} 23...
a5 {[%clk 0:01:31]} 24. Nd5 {[%clk 0:00:13.5]} 24... Ra8 {[%clk 0:01:19.3]} 25.
h4 {[%clk 0:00:13.6]} 25... a4 {[%clk 0:01:11.7]} 26. b4 {[%clk 0:00:13.5]}
26... Ne6 {[%clk 0:00:49.3]} 27. bxc5 {[%clk 0:00:11]} 27... dxc5 {[%clk
0:00:47.8]} 28. Bh6 {[%clk 0:00:10.5]} 28... Nd4 {[%clk 0:00:37.9]} 29. Bxg7
{[%clk 0:00:09.8]} 29... Kxg7 {[%clk 0:00:38.1]} 30. h5 {[%clk 0:00:10.4]} 30...
Qc6 {[%clk 0:00:31.7]} 31. h6+ {[%clk 0:00:09]} 31... Kg8 {[%clk 0:00:31.3]} 32.
Rxd4 {[%clk 0:00:08]} 32... cxd4 {[%clk 0:00:31.2]} 33. Qxd4 {[%clk 0:00:08.9]}
33... f6 {[%clk 0:00:31.7]} 34. Rb1 {[%clk 0:00:08.5]} 34... Rac8 {[%clk
0:00:20.9]} 35. Qa7 {[%clk 0:00:03.6]} 35... Kf7 {[%clk 0:00:16]} 36. Rb7 {[%clk
0:00:02.3]} 36... Qc5 {[%clk 0:00:13.9]} 0-1

[Event "*** SCC Grand Prix: Titled Tuesday Blitz"]
[Site "Chess.com"]
[Date "2020.06.02"]
[Round "7"]
[White "Yoshikrov"]
[Black "korkmaz16"]
[Result "0-1"]
[WhiteElo "2041"]
[BlackElo "2254"]
[TimeControl "180+1"]
[EndTime "11:20:22 PDT"]
[Termination "korkmaz16 won on time"]

1. e4 {[%clk 0:03:00.9]} 1... e6 {[%clk 0:02:58.3]} 2. d4 {[%clk 0:03:00.7]}
2... d5 {[%clk 0:02:58.7]} 3. Nd2 {[%clk 0:03:01]} 3... Nf6 {[%clk 0:02:58.8]}
4. e5 {[%clk 0:03:01.4]} 4... Nfd7 {[%clk 0:02:58.8]} 5. c3 {[%clk 0:03:02]}
5... c5 {[%clk 0:02:59.3]} 6. Bd3 {[%clk 0:03:02.3]} 6... Nc6 {[%clk 0:02:59.4]}
7. Ne2 {[%clk 0:03:02.3]} 7... cxd4 {[%clk 0:02:59.2]} 8. cxd4 {[%clk
0:03:02.5]} 8... f6 {[%clk 0:02:59.6]} 9. exf6 {[%clk 0:03:02.8]} 9... Nxf6
{[%clk 0:03:00.1]} 10. O-O {[%clk 0:03:03.4]} 10... Bd6 {[%clk 0:03:00.4]} 11.
Nf3 {[%clk 0:03:03.9]} 11... O-O {[%clk 0:03:00.4]} 12. Bg5 {[%clk 0:03:03.9]}
12... Qc7 {[%clk 0:02:58.9]} 13. Qc2 {[%clk 0:03:02.7]} 13... h6 {[%clk
0:02:56.1]} 14. Bh4 {[%clk 0:03:01.3]} 14... Ng4 {[%clk 0:02:55.9]} 15. Bg3
{[%clk 0:02:47.4]} 15... Bd7 {[%clk 0:02:44.4]} 16. Rac1 {[%clk 0:02:32]} 16...
Rac8 {[%clk 0:02:36.6]} 17. Qd2 {[%clk 0:02:21.5]} 17... Bxg3 {[%clk 0:02:26.7]}
18. hxg3 {[%clk 0:02:20.3]} 18... Qd6 {[%clk 0:02:26.8]} 19. Bb1 {[%clk
0:02:17.1]} 19... Rf6 {[%clk 0:02:05.3]} 20. Qd3 {[%clk 0:02:10.1]} 20... g6
{[%clk 0:02:02.8]} 21. Nf4 {[%clk 0:01:55]} 21... Be8 {[%clk 0:01:55]} 22. Rfe1
{[%clk 0:01:44.8]} 22... Kg7 {[%clk 0:01:34.1]} 23. a3 {[%clk 0:01:17.3]} 23...
Rc7 {[%clk 0:01:22.1]} 24. Nh4 {[%clk 0:00:51.7]} 24... Rxf4 {[%clk 0:00:58.8]}
25. gxf4 {[%clk 0:00:50.2]} 25... Qxf4 {[%clk 0:00:58.9]} 26. Nxg6 {[%clk
0:00:48]} 26... Qh2+ {[%clk 0:00:20.6]} 27. Kf1 {[%clk 0:00:47.9]} 27... Qh1+
{[%clk 0:00:20.7]} 28. Ke2 {[%clk 0:00:48]} 28... Qxg2 {[%clk 0:00:21.3]} 29.
Rf1 {[%clk 0:00:14.5]} 29... Nh2 {[%clk 0:00:18.2]} 30. Nf4 {[%clk 0:00:11]}
30... Qg4+ {[%clk 0:00:15.6]} 31. Ke1 {[%clk 0:00:09.7]} 31... Nf3+ {[%clk
0:00:14.3]} 32. Kd1 {[%clk 0:00:03]} 32... Nfxd4+ {[%clk 0:00:13.9]} 33. f3
{[%clk 0:00:02.2]} 33... Qxf4 {[%clk 0:00:13.9]} 34. Rg1+ {[%clk 0:00:01.8]}
34... Kf8 {[%clk 0:00:13.7]} 35. Qh7 {[%clk 0:00:01.1]} 35... Rxh7 {[%clk
0:00:12.9]} 0-1

[Event "*** SCC Grand Prix: Titled Tuesday Blitz"]
[Site "Chess.com"]
[Date "2020.06.02"]
[Round "7"]
[White "AleksanderHnydiuk"]
[Black "Kirill_Klukin"]
[Result "0-1"]
[WhiteElo "2561"]
[BlackElo "2728"]
[TimeControl "180+1"]
[EndTime "11:20:23 PDT"]
[Termination "Kirill_Klukin won on time"]

1. d4 {[%clk 0:03:00.9]} 1... Nf6 {[%clk 0:02:56.7]} 2. c4 {[%clk 0:03:00.8]}
2... Nc6 {[%clk 0:02:55.4]} 3. Nf3 {[%clk 0:03:00.1]} 3... e6 {[%clk 0:02:55.4]}
4. g3 {[%clk 0:02:59.4]} 4... Bb4+ {[%clk 0:02:54.9]} 5. Bd2 {[%clk 0:02:59.3]}
5... Qe7 {[%clk 0:02:54.6]} 6. Nc3 {[%clk 0:02:58.8]} 6... O-O {[%clk
0:02:54.7]} 7. Bg2 {[%clk 0:02:58.2]} 7... Bxc3 {[%clk 0:02:55.2]} 8. Bxc3
{[%clk 0:02:58.3]} 8... Ne4 {[%clk 0:02:55.9]} 9. Qc2 {[%clk 0:02:55.3]} 9...
Nxc3 {[%clk 0:02:55.7]} 10. Qxc3 {[%clk 0:02:56.2]} 10... a5 {[%clk 0:02:56.3]}
11. O-O {[%clk 0:02:55.7]} 11... d6 {[%clk 0:02:56.4]} 12. Rfd1 {[%clk
0:02:46.3]} 12... e5 {[%clk 0:02:56.6]} 13. d5 {[%clk 0:02:42]} 13... Nb8 {[%clk
0:02:56.4]} 14. c5 {[%clk 0:02:40.5]} 14... Bg4 {[%clk 0:02:46.7]} 15. Rac1
{[%clk 0:02:36.4]} 15... Nd7 {[%clk 0:02:46.3]} 16. cxd6 {[%clk 0:02:31.5]}
16... cxd6 {[%clk 0:02:47.2]} 17. Qe3 {[%clk 0:02:10]} 17... Bxf3 {[%clk
0:02:45]} 18. Bxf3 {[%clk 0:02:09]} 18... Nc5 {[%clk 0:02:45.7]} 19. Rxc5 {[%clk
0:01:41]} 19... dxc5 {[%clk 0:02:46.6]} 20. d6 {[%clk 0:01:41.1]} 20... Qf6
{[%clk 0:02:44.9]} 21. Qxc5 {[%clk 0:01:13.8]} 21... e4 {[%clk 0:02:22.3]} 22.
Bxe4 {[%clk 0:01:12]} 22... Qxb2 {[%clk 0:02:22.3]} 23. d7 {[%clk 0:00:29.2]}
23... Qxe2 {[%clk 0:02:03.4]} 24. Rd4 {[%clk 0:00:23.3]} 24... Qxa2 {[%clk
0:01:44.5]} 25. Qb6 {[%clk 0:00:23.2]} 25... Rad8 {[%clk 0:01:42.7]} 26. Bxb7
{[%clk 0:00:19.3]} 26... Qe6 {[%clk 0:01:34.1]} 27. Qxe6 {[%clk 0:00:17.6]}
27... fxe6 {[%clk 0:01:33.5]} 28. Bc6 {[%clk 0:00:17.1]} 28... Rf5 {[%clk
0:01:32.4]} 29. Ba4 {[%clk 0:00:08.9]} 29... Kf8 {[%clk 0:01:29.2]} 30. f4
{[%clk 0:00:08.2]} 30... Ke7 {[%clk 0:01:29.5]} 31. Rc4 {[%clk 0:00:05.9]} 31...
Rd5 {[%clk 0:01:29.2]} 32. Kg2 {[%clk 0:00:03.9]} 32... h6 {[%clk 0:01:29.2]}
33. h4 {[%clk 0:00:03.4]} 33... g5 {[%clk 0:01:29.4]} 34. hxg5 {[%clk
0:00:03.1]} 34... hxg5 {[%clk 0:01:30.3]} 35. Kf3 {[%clk 0:00:03.7]} 35... gxf4
{[%clk 0:01:26.6]} 36. gxf4 {[%clk 0:00:04.6]} 36... Rd3+ {[%clk 0:01:23.3]} 37.
Ke4 {[%clk 0:00:04.4]} 37... Ra3 {[%clk 0:01:20]} 38. Kd4 {[%clk 0:00:02.8]}
38... Kd6 {[%clk 0:01:08.4]} 39. Ke4 {[%clk 0:00:03]} 39... Ra2 {[%clk 0:01:06]}
40. Kd4 {[%clk 0:00:02.9]} 40... Rb2 {[%clk 0:01:05.6]} 41. Ke4 {[%clk 0:00:03]}
41... Rb4 {[%clk 0:01:05.6]} 42. Rxb4 {[%clk 0:00:01.4]} 42... axb4 {[%clk
0:01:06.5]} 43. Kd4 {[%clk 0:00:01.8]} 43... Rb8 {[%clk 0:00:31.4]} 0-1

[Event "*** SCC Grand Prix: Titled Tuesday Blitz"]
[Site "Chess.com"]
[Date "2020.06.02"]
[Round "7"]
[White "RestartingChess"]
[Black "manmanlai1"]
[Result "1-0"]
[WhiteElo "2496"]
[BlackElo "2366"]
[TimeControl "180+1"]
[EndTime "11:20:26 PDT"]
[Termination "RestartingChess won by resignation"]

1. e4 {[%clk 0:03:00.9]} 1... c5 {[%clk 0:02:58.3]} 2. Nf3 {[%clk 0:03:01.3]}
2... e6 {[%clk 0:02:58.7]} 3. b3 {[%clk 0:03:01.6]} 3... d5 {[%clk 0:02:55.3]}
4. exd5 {[%clk 0:03:01.5]} 4... exd5 {[%clk 0:02:56.2]} 5. Bb2 {[%clk
0:03:02.4]} 5... Nc6 {[%clk 0:02:52.8]} 6. Bb5 {[%clk 0:03:02.8]} 6... Nf6
{[%clk 0:02:51.7]} 7. O-O {[%clk 0:03:03.4]} 7... Be7 {[%clk 0:02:51.7]} 8. d4
{[%clk 0:03:00.6]} 8... O-O {[%clk 0:02:51.1]} 9. dxc5 {[%clk 0:03:00.2]} 9...
a6 {[%clk 0:02:50]} 10. Bd3 {[%clk 0:02:55.1]} 10... Bxc5 {[%clk 0:02:46.6]} 11.
Nc3 {[%clk 0:02:55.2]} 11... Bg4 {[%clk 0:02:45.2]} 12. h3 {[%clk 0:02:55.2]}
12... Bh5 {[%clk 0:02:44.8]} 13. g4 {[%clk 0:02:51.9]} 13... Bg6 {[%clk
0:02:44.4]} 14. Bxg6 {[%clk 0:02:51.8]} 14... fxg6 {[%clk 0:02:31.5]} 15. a3
{[%clk 0:02:48.6]} 15... Kh8 {[%clk 0:02:28.9]} 16. b4 {[%clk 0:02:48.6]} 16...
Ba7 {[%clk 0:02:27]} 17. Kg2 {[%clk 0:02:34.7]} 17... Qd7 {[%clk 0:02:21]} 18.
Ne2 {[%clk 0:02:10.9]} 18... Rf7 {[%clk 0:01:35.4]} 19. Ng5 {[%clk 0:01:49.2]}
19... Rff8 {[%clk 0:01:23.7]} 20. Ng3 {[%clk 0:01:48.2]} 20... Rae8 {[%clk
0:01:15.3]} 21. Qd2 {[%clk 0:01:30.9]} 21... h6 {[%clk 0:01:09]} 22. Nf3 {[%clk
0:01:28.4]} 22... Ne4 {[%clk 0:01:07.4]} 23. Nxe4 {[%clk 0:01:25.6]} 23... Rxe4
{[%clk 0:01:08.3]} 24. Qxh6+ {[%clk 0:01:22.8]} 24... Kg8 {[%clk 0:01:07.3]} 25.
Qxg6 {[%clk 0:01:20.8]} 25... Ref4 {[%clk 0:00:17.2]} 26. Ng5 {[%clk 0:01:06.3]}
26... Rxg4+ {[%clk 0:00:17.3]} 27. Kh1 {[%clk 0:00:59.4]} 27... Rxg5 {[%clk
0:00:16.5]} 28. Qxg5 {[%clk 0:00:57.1]} 28... Qxh3+ {[%clk 0:00:15.6]} 29. Kg1
{[%clk 0:00:57.7]} 29... d4 {[%clk 0:00:11]} 30. Rae1 {[%clk 0:00:50.7]} 30...
Bb8 {[%clk 0:00:10.9]} 31. Qg2 {[%clk 0:00:49]} 31... Qh5 {[%clk 0:00:09.6]} 32.
Re4 {[%clk 0:00:44.8]} 32... Rf6 {[%clk 0:00:09.7]} 33. Rg4 {[%clk 0:00:44.3]}
33... g6 {[%clk 0:00:04.5]} 34. Bxd4 {[%clk 0:00:29.2]} 34... Bh2+ {[%clk
0:00:04]} 35. Kh1 {[%clk 0:00:21.5]} 35... Bg3+ {[%clk 0:00:03.8]} 36. Kg1
{[%clk 0:00:20.2]} 36... Bh2+ {[%clk 0:00:02.9]} 37. Qxh2 {[%clk 0:00:13.3]}
37... Qxg4+ {[%clk 0:00:02.8]} 38. Qg3 {[%clk 0:00:14.2]} 38... Nxd4 {[%clk
0:00:03.3]} 39. Qxg4 {[%clk 0:00:13.7]} 1-0

[Event "*** SCC Grand Prix: Titled Tuesday Blitz"]
[Site "Chess.com"]
[Date "2020.06.02"]
[Round "7"]
[White "Shushik"]
[Black "sopo-tereladze"]
[Result "1/2-1/2"]
[WhiteElo "2161"]
[BlackElo "2330"]
[TimeControl "180+1"]
[EndTime "11:20:27 PDT"]
[Termination "Game drawn by repetition"]

1. e4 {[%clk 0:03:00.9]} 1... e5 {[%clk 0:03:00.2]} 2. Nf3 {[%clk 0:03:00.8]}
2... Nc6 {[%clk 0:03:00.5]} 3. Bc4 {[%clk 0:03:00.8]} 3... Nf6 {[%clk
0:02:58.4]} 4. d3 {[%clk 0:03:00.7]} 4... Be7 {[%clk 0:02:57.7]} 5. O-O {[%clk
0:02:57.4]} 5... d6 {[%clk 0:02:57.8]} 6. Re1 {[%clk 0:02:57.3]} 6... O-O {[%clk
0:02:58.7]} 7. Nc3 {[%clk 0:02:56.4]} 7... Bg4 {[%clk 0:02:52.6]} 8. Be3 {[%clk
0:02:36.9]} 8... Na5 {[%clk 0:02:42.5]} 9. a4 {[%clk 0:02:27.6]} 9... Nxc4
{[%clk 0:02:42.2]} 10. dxc4 {[%clk 0:02:27.5]} 10... Qd7 {[%clk 0:02:41.6]} 11.
Bg5 {[%clk 0:02:21.2]} 11... h6 {[%clk 0:02:34.4]} 12. Bxf6 {[%clk 0:02:16.5]}
12... Bxf6 {[%clk 0:02:35.3]} 13. Qd3 {[%clk 0:02:14.9]} 13... b6 {[%clk
0:02:31.9]} 14. Rad1 {[%clk 0:02:09.1]} 14... Rad8 {[%clk 0:02:25.2]} 15. Nd5
{[%clk 0:02:01.6]} 15... Be7 {[%clk 0:02:21.5]} 16. b3 {[%clk 0:02:01]} 16... f5
{[%clk 0:02:15.4]} 17. exf5 {[%clk 0:01:56.6]} 17... Bxf5 {[%clk 0:02:13.2]} 18.
Qc3 {[%clk 0:01:54.8]} 18... Bg4 {[%clk 0:02:05.3]} 19. Rd3 {[%clk 0:01:43.2]}
19... c6 {[%clk 0:01:01.2]} 20. Nb4 {[%clk 0:01:26.9]} 20... Bf6 {[%clk
0:00:53.5]} 21. Qd2 {[%clk 0:01:07.6]} 21... a5 {[%clk 0:00:51]} 22. Na2 {[%clk
0:01:06.6]} 22... Qe7 {[%clk 0:00:44.5]} 23. Nc3 {[%clk 0:01:02.1]} 23... Rf7
{[%clk 0:00:36.7]} 24. Ne4 {[%clk 0:00:57.1]} 24... Qe6 {[%clk 0:00:26.5]} 25.
Nxd6 {[%clk 0:00:51.1]} 25... Rfd7 {[%clk 0:00:24.8]} 26. Ne4 {[%clk 0:00:43.2]}
26... Bxf3 {[%clk 0:00:24.2]} 27. gxf3 {[%clk 0:00:36.7]} 27... Qh3 {[%clk
0:00:22]} 28. Ng3 {[%clk 0:00:36.2]} 28... Rd4 {[%clk 0:00:18.5]} 29. Rxd4
{[%clk 0:00:27.1]} 29... Rxd4 {[%clk 0:00:19.4]} 30. Qe3 {[%clk 0:00:26.6]}
30... Rh4 {[%clk 0:00:18.6]} 31. Nf1 {[%clk 0:00:26.7]} 31... Bg5 {[%clk
0:00:15.4]} 32. Qxe5 {[%clk 0:00:26.4]} 32... Bf4 {[%clk 0:00:15.2]} 33. Qe8+
{[%clk 0:00:26.4]} 33... Kh7 {[%clk 0:00:14.7]} 34. Qe4+ {[%clk 0:00:26]} 34...
Kh8 {[%clk 0:00:14]} 35. Qe8+ {[%clk 0:00:18.6]} 35... Kh7 {[%clk 0:00:13.9]}
36. Qe4+ {[%clk 0:00:19]} 36... Kg8 {[%clk 0:00:13.4]} 37. Qe8+ {[%clk
0:00:19.3]} 37... Kh7 {[%clk 0:00:13.2]} 1/2-1/2

[Event "*** SCC Grand Prix: Titled Tuesday Blitz"]
[Site "Chess.com"]
[Date "2020.06.02"]
[Round "7"]
[White "Loiacono_Antonio"]
[Black "HElissalt"]
[Result "1-0"]
[WhiteElo "2413"]
[BlackElo "2229"]
[TimeControl "180+1"]
[EndTime "11:20:28 PDT"]
[Termination "Loiacono_Antonio won by resignation"]

1. e4 {[%clk 0:03:00.9]} 1... d6 {[%clk 0:02:59.5]} 2. d4 {[%clk 0:03:00.5]}
2... Nf6 {[%clk 0:02:58.9]} 3. Nc3 {[%clk 0:03:00.2]} 3... e5 {[%clk 0:02:58.7]}
4. dxe5 {[%clk 0:02:59.6]} 4... dxe5 {[%clk 0:02:58.2]} 5. Qxd8+ {[%clk
0:03:00.2]} 5... Kxd8 {[%clk 0:02:58.5]} 6. Bc4 {[%clk 0:03:00.8]} 6... Be6
{[%clk 0:02:58.4]} 7. Bxe6 {[%clk 0:03:00.4]} 7... fxe6 {[%clk 0:02:59.1]} 8. f3
{[%clk 0:02:59.9]} 8... Bd6 {[%clk 0:02:59.5]} 9. Nh3 {[%clk 0:02:59.1]} 9...
Ke7 {[%clk 0:02:59.4]} 10. Nf2 {[%clk 0:02:59.3]} 10... a6 {[%clk 0:02:59.8]}
11. Nd3 {[%clk 0:02:59.4]} 11... Nbd7 {[%clk 0:02:56.9]} 12. b3 {[%clk
0:02:58.3]} 12... c5 {[%clk 0:02:51.5]} 13. Nd1 {[%clk 0:02:55.4]} 13... b5
{[%clk 0:02:51.3]} 14. Ne3 {[%clk 0:02:54.6]} 14... Nb8 {[%clk 0:02:00.9]} 15.
a4 {[%clk 0:02:53.2]} 15... Nc6 {[%clk 0:01:59.9]} 16. Bb2 {[%clk 0:02:52.2]}
16... Nd4 {[%clk 0:01:40.1]} 17. Kf2 {[%clk 0:02:51.1]} 17... Rhf8 {[%clk
0:01:38.7]} 18. Ke1 {[%clk 0:02:44.8]} 18... g5 {[%clk 0:01:30.4]} 19. h3 {[%clk
0:02:43.3]} 19... h5 {[%clk 0:01:29.6]} 20. Kd2 {[%clk 0:02:38.7]} 20... Rfc8
{[%clk 0:01:15.9]} 21. axb5 {[%clk 0:02:35.1]} 21... axb5 {[%clk 0:01:15.2]} 22.
Rxa8 {[%clk 0:02:36]} 22... Rxa8 {[%clk 0:01:15.3]} 23. Ra1 {[%clk 0:02:36.9]}
23... Rxa1 {[%clk 0:01:14.5]} 24. Bxa1 {[%clk 0:02:37.8]} 24... Nc6 {[%clk
0:01:09.3]} 25. c3 {[%clk 0:02:31.3]} 25... Nd7 {[%clk 0:01:02.6]} 26. g4 {[%clk
0:02:24.8]} 26... h4 {[%clk 0:01:01.8]} 27. Bb2 {[%clk 0:02:24.3]} 27... Nb6
{[%clk 0:01:01.3]} 28. Ba3 {[%clk 0:02:20.4]} 28... c4 {[%clk 0:00:52]} 29.
Bxd6+ {[%clk 0:02:18]} 29... Kxd6 {[%clk 0:00:52]} 30. bxc4 {[%clk 0:02:18]}
30... Nxc4+ {[%clk 0:00:38.3]} 31. Nxc4+ {[%clk 0:02:16.9]} 31... bxc4 {[%clk
0:00:38.4]} 32. Nb4 {[%clk 0:02:16.3]} 32... Na5 {[%clk 0:00:26.1]} 33. Nc2
{[%clk 0:02:12.7]} 33... Nb3+ {[%clk 0:00:24.9]} 34. Ke2 {[%clk 0:02:12.7]}
34... Nc1+ {[%clk 0:00:22.3]} 35. Ke3 {[%clk 0:02:11.6]} 35... Nd3 {[%clk
0:00:21.7]} 36. Nb4 {[%clk 0:01:59.9]} 36... Nb2 {[%clk 0:00:20.3]} 37. Kd2
{[%clk 0:01:58.4]} 37... Na4 {[%clk 0:00:18.8]} 38. Na6 {[%clk 0:01:56.7]} 38...
Nb2 {[%clk 0:00:17.6]} 39. Nb4 {[%clk 0:01:47.5]} 39... Na4 {[%clk 0:00:17.1]}
40. Nc2 {[%clk 0:01:47.9]} 40... Nc5 {[%clk 0:00:17]} 41. Ne1 {[%clk 0:01:47.1]}
41... Nb3+ {[%clk 0:00:16.9]} 42. Ke3 {[%clk 0:01:47.3]} 42... Kc5 {[%clk
0:00:17.1]} 43. Ke2 {[%clk 0:01:45]} 43... Nc1+ {[%clk 0:00:17.1]} 44. Kd2
{[%clk 0:01:45.3]} 44... Nb3+ {[%clk 0:00:17.2]} 45. Kc2 {[%clk 0:01:45.7]}
45... Na5 {[%clk 0:00:17.2]} 46. f4 {[%clk 0:01:36]} 46... exf4 {[%clk
0:00:16.6]} 47. Nf3 {[%clk 0:01:36.3]} 47... Nb3 {[%clk 0:00:16]} 48. Nxg5
{[%clk 0:01:35.6]} 48... Kd6 {[%clk 0:00:16.2]} 49. Nf3 {[%clk 0:01:35.6]} 49...
e5 {[%clk 0:00:16.5]} 50. Nxh4 {[%clk 0:01:35.8]} 50... Nc5 {[%clk 0:00:16.7]}
51. Nf3 {[%clk 0:01:33.4]} 51... Nxe4 {[%clk 0:00:16.8]} 52. h4 {[%clk
0:01:30.8]} 52... Ke6 {[%clk 0:00:17.3]} 53. h5 {[%clk 0:01:29.9]} 53... Nf6
{[%clk 0:00:16.2]} 54. h6 {[%clk 0:01:29.1]} 54... Nh7 {[%clk 0:00:14.8]} 55. g5
{[%clk 0:01:28.3]} 55... Kf5 {[%clk 0:00:14.9]} 56. Nxe5 {[%clk 0:01:15.1]}
56... Kxe5 {[%clk 0:00:14.6]} 57. g6 {[%clk 0:01:14.1]} 57... f3 {[%clk
0:00:12.1]} 58. gxh7 {[%clk 0:01:13.2]} 1-0